fUSD/lending_fUSD_20260527
["ID","MTS","AMOUNT","RATE_DAILY","PERIOD"]
[423114926,1779861043000,-253.0,0.00039222,5]
[423114933,1779861043000,-151.0,0.00039222,30]
[423114925,1779861043000,-87663.35524545,0.00039222,28]
[423114932,1779861043000,-199.45897,0.00039222,30]
[423114931,1779861043000,-308.830093,0.00039222,30]
[423114924,1779861043000,-150.0,0.00039221,120]
[423114936,1779861043000,-199.45897,0.00039222,30]
[423114945,1779861043000,-170.583884,0.00039222,30]
[423114941,1779861043000,-255.704249,0.00039222,30]
[423115011,1779861044000,-151.0,0.00039222,30]
[423114995,1779861044000,-456.112707,0.00039222,30]
[423115002,1779861044000,-151.0,0.00039222,7]
[423115006,1779861044000,-439.354856,0.00039222,30]
[423115003,1779861044000,-439.354856,0.00039222,30]
[423114998,1779861044000,-231.054138,0.00039222,30]
[423114997,1779861044000,-456.112707,0.00039222,30]
[423114999,1779861044000,-151.0,0.00039222,30]
[423114996,1779861044000,-231.054138,0.00039222,30]
[423115000,1779861044000,-231.054138,0.00039222,30]
[423115007,1779861044000,-151.0,0.00039222,30]
[423115001,1779861044000,-151.0,0.00039222,7]
[423115004,1779861044000,-151.0,0.00039222,30]
[423115014,1779861044000,-174.61919141,0.0003923,10]
[423115005,1779861044000,-439.354856,0.00039222,30]
[423115012,1779861044000,-184.077024,0.00039222,30]
[423115008,1779861044000,-439.354856,0.00039222,30]
[423115009,1779861044000,-151.0,0.00039222,30]
[423115013,1779861044000,-422.1212798,0.00039224,2]
[423115016,1779861044000,-181.08010149,0.0003923,10]
[423115015,1779861044000,-419.74552907,0.0003923,10]
[423115023,1779861044000,-707.26835115,0.0003923,10]
[423115022,1779861044000,-298.00835152,0.0003923,10]
[423115020,1779861044000,-201.93286098,0.0003923,10]
[423115019,1779861044000,-1377.42282658,0.0003923,10]
[423115010,1779861044000,-151.0,0.00039222,30]
[423114993,1779861044000,-456.112707,0.00039222,30]
[423115017,1779861044000,-187.78006524,0.0003923,10]
[423114994,1779861044000,-231.054138,0.00039222,30]
[423114968,1779861044000,-151.0,0.00039222,30]
[423114969,1779861044000,-342.789926,0.00039222,30]
[423114967,1779861044000,-151.0,0.00039222,30]
[423114973,1779861044000,-174.284134,0.00039222,30]
[423114972,1779861044000,-342.789926,0.00039222,30]
[423114970,1779861044000,-151.0,0.00039222,30]
[423114971,1779861044000,-342.789926,0.00039222,30]
[423114974,1779861044000,-201.73513,0.00039222,30]
[423114975,1779861044000,-201.73513,0.00039222,30]
[423114976,1779861044000,-201.73513,0.00039222,30]
[423114977,1779861044000,-201.73513,0.00039222,30]
[423114978,1779861044000,-151.0,0.00039222,30]
[423114980,1779861044000,-484.712126,0.00039222,30]
[423114979,1779861044000,-211.731413,0.00039222,30]
[423114989,1779861044000,-151.0,0.00039222,30]
[423114982,1779861044000,-151.0,0.00039222,10]
[423114981,1779861044000,-211.731413,0.00039222,30]
[423114985,1779861044000,-484.712126,0.00039222,30]
[423114984,1779861044000,-211.731413,0.00039222,30]
[423114987,1779861044000,-211.731413,0.00039222,30]
[423114986,1779861044000,-151.0,0.00039222,30]
[423114983,1779861044000,-484.712126,0.00039222,30]
[423114988,1779861044000,-484.712126,0.00039222,30]
[423114991,1779861044000,-456.112707,0.00039222,30]
[423114990,1779861044000,-151.0,0.00039222,30]
[423114992,1779861044000,-151.0,0.00039222,30]
[423115021,1779861044000,-607.73253053,0.0003923,10]
[423115031,1779861044000,-403.67679024,0.00039322,2]
[423115024,1779861044000,-8019.84868503,0.00039233,2]
[423115057,1779861044000,-151.0,0.00039332,30]
[423115067,1779861044000,-151.0,0.00039332,30]
[423115069,1779861044000,-290.38468,0.00039332,30]
[423115071,1779861044000,-430.856794,0.00039332,30]
[423115074,1779861044000,-430.856794,0.00039332,30]
[423115077,1779861044000,-430.856794,0.00039332,30]
[423115079,1779861044000,-430.856794,0.00039332,30]
[423115083,1779861044000,-430.856794,0.00039332,30]
[423115081,1779861044000,-430.856794,0.00039332,30]
[423115086,1779861044000,-430.856794,0.00039332,30]
[423115088,1779861044000,-151.0,0.00039332,30]
[423115092,1779861044000,-151.0,0.00039332,30]
[423115090,1779861044000,-430.856794,0.00039332,30]
[423115098,1779861044000,-151.0,0.00039332,30]
[423115100,1779861044000,-430.856794,0.00039332,30]
[423115102,1779861044000,-151.0,0.00039332,30]
[423115104,1779861044000,-430.856794,0.00039332,30]
[423115107,1779861044000,-151.0,0.00039332,30]
[423115109,1779861044000,-430.856794,0.00039332,30]
[423115111,1779861044000,-151.0,0.00039332,30]
[423115115,1779861044000,-151.0,0.00039332,30]
[423115113,1779861044000,-430.856794,0.00039332,30]
[423115117,1779861044000,-430.856794,0.00039332,30]
[423115106,1779861044000,-430.856794,0.00039332,30]
[423115018,1779861044000,-194.72792766,0.0003923,10]
[423115065,1779861044000,-151.0,0.00039332,30]
[423115061,1779861044000,-151.0,0.00039332,30]
[423115095,1779861044000,-430.856794,0.00039332,30]
[423115063,1779861044000,-151.0,0.00039332,30]
[423115054,1779861044000,-151.0,0.00039332,30]
[423115027,1779861044000,-150.0,0.00039315,30]
[423115026,1779861044000,-152.0,0.00039247,7]
[423115034,1779861044000,-151.0,0.00039322,30]
[423115033,1779861044000,-151.0,0.00039322,30]
[423115030,1779861044000,-403.67679024,0.00039322,2]
[423115028,1779861044000,-521.0,0.0003932,30]
[423115025,1779861044000,-834.94538248,0.00039233,2]
[423115029,1779861044000,-150.0,0.00039322,5]
[423115119,1779861044000,-151.0,0.00039332,30]
[423115036,1779861044000,-165.36373874,0.00039323,2]
[423115035,1779861044000,-151.0,0.00039322,30]
[423115038,1779861044000,-535.13249543,0.00039327,120]
[423115032,1779861044000,-403.67679024,0.00039322,2]
[423115056,1779861044000,-151.0,0.00039332,30]
[423115059,1779861044000,-151.0,0.00039332,30]
[423115037,1779861044000,-165.36373874,0.00039323,2]
[423115044,1779861044000,-151.0,0.00039332,30]
[423115052,1779861044000,-151.0,0.00039332,30]
[423115050,1779861044000,-151.0,0.00039332,30]
[423115041,1779861044000,-151.0,0.00039332,30]
[423115039,1779861044000,-150.10005236,0.0003933,120]
[423115042,1779861044000,-151.0,0.00039332,30]
[423115040,1779861044000,-151.0,0.00039332,30]
[423115048,1779861044000,-151.0,0.00039332,30]
[423115043,1779861044000,-151.0,0.00039332,30]
[423115046,1779861044000,-232.302578,0.00039332,30]
[423115159,1779861045000,-151.0,0.00039332,30]
[423115167,1779861045000,-151.0,0.00039332,30]
[423115165,1779861045000,-151.0,0.00039332,30]
[423115161,1779861045000,-151.0,0.00039332,30]
[423115169,1779861045000,-151.0,0.00039332,30]
[423115183,1779861045000,-279.688708,0.00039332,30]
[423115180,1779861045000,-151.0,0.00039332,30]
[423115176,1779861045000,-213.91936,0.00039332,30]
[423115184,1779861045000,-151.0,0.00039332,30]
[423115178,1779861045000,-151.0,0.00039332,30]
[423115163,1779861045000,-151.0,0.00039332,30]
[423115172,1779861045000,-151.0,0.00039332,30]
[423115150,1779861045000,-151.0,0.00039332,30]
[423115127,1779861045000,-430.856794,0.00039332,30]
[423115132,1779861045000,-151.0,0.00039332,30]
[423115138,1779861045000,-151.0,0.00039332,30]
[423115148,1779861045000,-151.0,0.00039332,30]
[423115146,1779861045000,-151.0,0.00039332,30]
[423115144,1779861045000,-151.0,0.00039332,30]
[423115135,1779861045000,-151.0,0.00039332,30]
[423115141,1779861045000,-151.0,0.00039332,30]
[423115131,1779861045000,-430.85679,0.00039332,30]
[423115129,1779861045000,-430.856794,0.00039332,30]
[423115123,1779861045000,-170.373726,0.00039332,30]
[423115121,1779861045000,-430.856794,0.00039332,30]
[423115125,1779861045000,-430.856794,0.00039332,30]
[423115174,1779861045000,-151.0,0.00039332,30]
[423115137,1779861045000,-151.0,0.00039332,30]
[423115190,1779861045000,-151.0,0.00039332,30]
[423115186,1779861045000,-279.688708,0.00039332,30]
[423115191,1779861045000,-279.688708,0.00039332,30]
[423115188,1779861045000,-151.0,0.00039332,30]
[423115262,1779861045000,-637.98069986,0.00027397,10]
[423115266,1779861045000,-6189.8876825,0.00034435,2]
[423115240,1779861045000,-159.0,0.00039333,120]
[423115225,1779861045000,-20307.57386454,0.00039332,2]
[423115233,1779861045000,-250.0,0.00039333,30]
[423115235,1779861045000,-192.51812992,0.00039333,120]
[423115223,1779861045000,-20307.57386454,0.00039332,2]
[423115237,1779861045000,-159.0,0.00039333,120]
[423115231,1779861045000,-20307.57386454,0.00039332,2]
[423115229,1779861045000,-20307.57386454,0.00039332,2]
[423115219,1779861045000,-152.0,0.00039332,120]
[423115221,1779861045000,-161.0,0.00039332,120]
[423115227,1779861045000,-20307.57386454,0.00039332,2]
[423115242,1779861045000,-372095.08448753,0.00039333,30]
[423115201,1779861045000,-154.0,0.00039332,120]
[423115204,1779861045000,-162.0,0.00039332,120]
[423115197,1779861045000,-151.0,0.00039332,30]
[423115264,1779861045000,-1627.46930014,0.00027397,10]
[423115209,1779861045000,-152.0,0.00039332,120]
[423115194,1779861045000,-218.824284,0.00039332,30]
[423115206,1779861045000,-162.0,0.00039332,120]
[423115199,1779861045000,-151.0,0.00039332,30]
[423115196,1779861045000,-279.688708,0.00039332,30]
[423115213,1779861045000,-152.0,0.00039332,120]
[423115215,1779861045000,-153.0,0.00039332,120]
[423115211,1779861045000,-152.0,0.00039332,120]
[423115207,1779861045000,-167.0,0.00039332,120]
[423115217,1779861045000,-157.0,0.00039332,120]
[423115325,1779861046000,-338.89006486,0.0003246,2]
[423115360,1779861046000,-778.8551037,0.00034435,2]
[423115346,1779861046000,-309.0155037,0.0003246,2]
[423115348,1779861046000,-890.9044963,0.00034435,2]
[423115332,1779861046000,-577.09443144,0.0003246,2]
[423115431,1779861061000,195.0,0.00027975,120]
[423115430,1779861061000,195.0,0.00023666,120]
[423115433,1779861063000,2500.0,0.00027121,120]
[423115432,1779861063000,2500.0,0.00023666,120]
[423115501,1779861902000,300.34,0.00027758,120]
[423115512,1779862038000,-250.0,0.00012931,2]
[423115511,1779862038000,-151.0,0.000126,2]
[423115510,1779862038000,-150.0,0.00012112,2]
[423115509,1779862038000,-150.0,0.00011994,2]
[423115508,1779862038000,-276.06088797,0.00011918,2]
[423115507,1779862038000,-150.0,0.00011877,2]
[423115506,1779862038000,-197.12000001,0.00011855,2]
[423115505,1779862038000,-150.0,0.00011855,2]
[423115504,1779862038000,-344.38847477,0.00011848,2]
[423115502,1779862038000,-959.58939474,0.00011755,2]
[423115503,1779862038000,-250.0,0.00011805,2]
[423115513,1779862038000,-157.69,0.00014719,2]
[423115515,1779862038000,-5880.0,0.00016233,2]
[423115524,1779862038000,-157.69,0.00019135,2]
[423115517,1779862038000,-289.0,0.00017076,2]
[423115514,1779862038000,-157.69,0.00016191,2]
[423115529,1779862038000,-104.85530369,0.00022078,2]
[423115526,1779862038000,-276.06088796,0.00020628,2]
[423115527,1779862038000,-1680.0,0.00020887,2]
[423115525,1779862038000,-157.69,0.00020607,2]
[423115523,1779862038000,-7502.6362,0.00019073,2]
[423115528,1779862038000,-705.0,0.00022078,2]
[423115521,1779862038000,-1200.0,0.00019071,2]
[423115520,1779862038000,-433.60269141,0.00018184,2]
[423115518,1779862038000,-13829.0,0.0001757,2]
[423115519,1779862038000,-157.69,0.00017663,2]
[423115516,1779862038000,-228.57546954,0.00016928,2]
[423115522,1779862038000,-334.0,0.00019072,2]
[423115543,1779862048000,-151.1977421,0.0002721,2]
[423115549,1779862048000,-175.6,0.00028329,2]
[423115550,1779862048000,-181.96,0.00028491,30]
[423115548,1779862048000,-196.56334483,0.00028082,3]
[423115546,1779862048000,-494.33,0.00027858,2]
[423115547,1779862048000,-157.69,0.00027966,2]
[423115545,1779862048000,-5000.0,0.00027632,2]
[423115544,1779862048000,-150.0,0.00027521,2]
[423115542,1779862048000,-217.14,0.00026942,2]
[423115541,1779862048000,-157.69,0.00026494,2]
[423115536,1779862048000,-7989.21,0.00024174,2]
[423115538,1779862048000,-157.69,0.00025022,2]
[423115539,1779862048000,-7989.21,0.00025786,2]
[423115537,1779862048000,-500.0,0.00024798,2]
[423115535,1779862048000,-157.69,0.0002355,2]
[423115534,1779862048000,-522.55394835,0.00022337,2]
[423115532,1779862048000,-524.3911013,0.00022337,2]
[423115533,1779862048000,-512.77428283,0.00022337,2]
[423115531,1779862048000,-511.21496891,0.00022337,2]
[423115530,1779862048000,-52.83469631,0.00022078,2]
[423115551,1779862048000,-181.12,0.00028541,30]
[423115540,1779862048000,-500.0,0.00026,2]
[423115552,1779862048000,-500.0,0.00028553,30]
[423115575,1779862048000,-157.69,0.00029438,2]
[423115555,1779862048000,-665.21362812,0.00028624,2]
[423115553,1779862048000,-181.12,0.00028553,30]
[423115577,1779862048000,-175.98,0.00029772,120]
[423115574,1779862048000,-276.06088796,0.00029338,2]
[423115573,1779862048000,-1942.68,0.00029253,2]
[423115570,1779862048000,-316.75050505,0.00029,2]
[423115572,1779862048000,-200.0,0.000292,2]
[423115569,1779862048000,-260.86,0.00029,2]
[423115571,1779862048000,-402.67,0.000291,2]
[423115568,1779862048000,-260.87,0.00029,2]
[423115567,1779862048000,-181.97,0.00029,2]
[423115565,1779862048000,-260.87,0.00029,2]
[423115576,1779862048000,-1000.0,0.00029565,120]
[423115564,1779862048000,-174.18,0.00029,2]
[423115563,1779862048000,-2500.0,0.00029,2]
[423115561,1779862048000,-500.0,0.00028765,2]
[423115562,1779862048000,-150.0,0.00029,2]
[423115560,1779862048000,-181.96,0.00028745,7]
[423115559,1779862048000,-189.18,0.00028709,30]
[423115558,1779862048000,-186.92,0.00028669,30]
[423115557,1779862048000,-166.75,0.00028637,2]
[423115556,1779862048000,-2157.13038836,0.00028624,2]
[423115554,1779862048000,-152.47,0.00028556,2]
[423115566,1779862048000,-200.0,0.00029,2]
[423115592,1779862049000,-2288.04,0.00033262,2]
[423115591,1779862049000,-2388.50285334,0.00033137,2]
[423115594,1779862049000,-3761.92,0.00033542,2]
[423115598,1779862049000,-4083.82636009,0.00034,120]
[423115595,1779862049000,-510.3,0.00033675,2]
[423115596,1779862049000,-1156.55,0.00033724,120]
[423115590,1779862049000,-478.25714666,0.00033137,2]
[423115593,1779862049000,-166.75,0.00033363,2]
[423115588,1779862049000,-150.0,0.00032476,2]
[423115583,1779862049000,-239.07268607,0.00031115,7]
[423115585,1779862049000,-166.75,0.00032181,2]
[423115587,1779862049000,-1224.0,0.00032462,2]
[423115586,1779862049000,-999.94,0.00032253,32]
[423115584,1779862049000,-300.34,0.00031228,120]
[423115581,1779862049000,-166.66,0.0003092,30]
[423115580,1779862049000,-1000.0,0.00030911,2]
[423115582,1779862049000,-166.75,0.00031,2]
[423115578,1779862049000,-166.75,0.00029818,2]
[423115597,1779862049000,-2866.76,0.00033966,2]
[423115589,1779862049000,-5000.0,0.00033,120]
[423115599,1779862049000,-390.3,0.00034306,2]
[423115579,1779862049000,-213.89808373,0.00030159,2]
[423115601,1779862049000,-9999.99,0.00034649,2]
[423115621,1779862049000,-150.0,0.0003531,7]
[423115622,1779862049000,-250.8768377,0.00035381,10]
[423115619,1779862049000,-150.0,0.0003531,7]
[423115620,1779862049000,-150.0,0.0003531,7]
[423115618,1779862049000,-163.26368969,0.0003531,7]
[423115616,1779862049000,-150.0,0.0003531,7]
[423115617,1779862049000,-150.0,0.0003531,7]
[423115614,1779862049000,-199.96,0.0003528,120]
[423115612,1779862049000,-294.10431835,0.00035118,120]
[423115613,1779862049000,-278.6551873,0.00035122,2]
[423115615,1779862049000,-150.0,0.0003531,7]
[423115611,1779862049000,-500.0,0.00035118,120]
[423115602,1779862049000,-5970.93,0.00034649,2]
[423115610,1779862049000,-500.0,0.00035118,120]
[423115605,1779862049000,-299.99,0.00034649,30]
[423115604,1779862049000,-863.57759927,0.00034649,10]
[423115603,1779862049000,-136.41240073,0.00034649,10]
[423115607,1779862049000,-2866.76,0.00034794,2]
[423115608,1779862049000,-150.0,0.00035,4]
[423115609,1779862049000,-500.0,0.00035118,120]
[423115606,1779862049000,-300.34,0.00034697,120]
[423115600,1779862049000,-1386.65,0.00034615,2]
[423115625,1779862083000,2500.0,0.00027973,120]
[423115624,1779862083000,2500.0,0.00026806,120]
[423115623,1779862083000,2500.0,0.0002759,120]
[423115626,1779862084000,605.579139,0.0002759,120]
[423115629,1779862084000,300.0,0.00027973,120]
[423115628,1779862084000,300.0,0.00026806,120]
[423115627,1779862084000,300.0,0.0002759,120]
[423115630,1779862085000,300.0,0.00027973,120]
[423115631,1779862085000,303.64604252,0.00027973,120]
[423115632,1779862085000,221.98981065,0.0002759,120]
[423115638,1779862160000,-319.39490768,0.000261,2]
[423115640,1779862160000,-211.49873022,0.000266,2]
[423115637,1779862160000,-319.39490768,0.000258,2]
[423115639,1779862160000,-319.39490768,0.000263,2]
[423115636,1779862160000,-185.27268106,0.000255,2]
[423115635,1779862160000,-319.39490768,0.000255,2]
[423115634,1779862160000,-518.0,0.00025082,2]
[423115677,1779862232000,-160.0,0.000335,2]
[423115681,1779862232000,-160.0,0.000335,2]
[423115680,1779862232000,-160.0,0.000335,2]
[423115679,1779862232000,-160.0,0.000335,2]
[423115671,1779862232000,-160.0,0.000335,2]
[423115676,1779862232000,-160.0,0.000335,2]
[423115675,1779862232000,-160.0,0.000335,2]
[423115682,1779862232000,-160.0,0.000335,2]
[423115673,1779862232000,-160.0,0.000335,2]
[423115678,1779862232000,-160.0,0.000335,2]
[423115683,1779862232000,-160.0,0.000335,2]
[423115684,1779862232000,-160.0,0.000335,2]
[423115689,1779862232000,-160.0,0.000335,2]
[423115686,1779862232000,-160.0,0.000335,2]
[423115685,1779862232000,-160.0,0.000335,2]
[423115692,1779862232000,-160.0,0.000335,2]
[423115691,1779862232000,-160.0,0.000335,2]
[423115690,1779862232000,-160.0,0.000335,2]
[423115694,1779862232000,-160.0,0.000335,2]
[423115704,1779862232000,-1738.07,0.00035194,2]
[423115706,1779862232000,-1000.0,0.00035391,2]
[423115688,1779862232000,-160.0,0.000335,2]
[423115709,1779862232000,-300.0,0.00035391,2]
[423115653,1779862232000,-250.0,0.0002759,2]
[423115667,1779862232000,-3150.5,0.00033,120]
[423115650,1779862232000,-250.0,0.00026806,2]
[423115651,1779862232000,-79.54058754,0.00027577,2]
[423115649,1779862232000,-107.89617746,0.000266,2]
[423115652,1779862232000,-262.13069106,0.00027577,2]
[423115655,1779862232000,-250.0,0.00028485,2]
[423115656,1779862232000,-181.13,0.00028529,30]
[423115660,1779862232000,-526.25155808,0.00029,2]
[423115663,1779862232000,-200.0,0.00032507,2]
[423115654,1779862232000,-300.0,0.0002759,30]
[423115657,1779862232000,-186.92,0.00028629,30]
[423115661,1779862232000,-518.0,0.00031184,8]
[423115662,1779862232000,-166.66,0.00032136,30]
[423115664,1779862232000,-150.0,0.00032663,2]
[423115659,1779862232000,-156.52,0.00029,2]
[423115658,1779862232000,-181.13,0.00029,7]
[423115665,1779862232000,-400.0,0.00032999,2]
[423115666,1779862232000,-10000.0,0.00033,120]
[423115670,1779862232000,-1915.57,0.00033351,2]
[423115669,1779862232000,-10000.0,0.000333,120]
[423115668,1779862232000,-166.66,0.00033264,30]
[423115672,1779862232000,-160.0,0.000335,2]
[423115674,1779862232000,-160.0,0.000335,2]
[423115693,1779862232000,-160.0,0.000335,2]
[423115739,1779862232000,-300.99795142,0.00035391,2]
[423115708,1779862232000,-300.0,0.00035391,2]
[423115744,1779862232000,-300.0,0.00035391,2]
[423115747,1779862232000,-300.0,0.00035391,2]
[423115745,1779862232000,-300.0,0.00035391,2]
[423115746,1779862232000,-1263.96825586,0.00035391,2]
[423115748,1779862232000,-344.45437934,0.00035391,2]
[423115751,1779862232000,-300.76542561,0.00035391,2]
[423115749,1779862232000,-527.62572404,0.00035391,2]
[423115750,1779862232000,-300.0,0.00035391,2]
[423115758,1779862232000,-511.13380127,0.00035391,2]
[423115757,1779862232000,-310.02493426,0.00035391,2]
[423115753,1779862232000,-950.32029804,0.00035391,2]
[423115754,1779862232000,-300.09384644,0.00035391,2]
[423115755,1779862232000,-1063.56517097,0.00035391,2]
[423115756,1779862232000,-85.27072055,0.00035391,2]
[423115760,1779862232000,-300.0,0.00035391,2]
[423115762,1779862232000,-300.0,0.00035391,2]
[423115761,1779862232000,-594.79850986,0.00035391,2]
[423115759,1779862232000,-729.59048461,0.00035391,2]
[423115764,1779862232000,-300.0,0.00035391,2]
[423115763,1779862232000,-464.48677942,0.00035391,2]
[423115712,1779862232000,-307.08549401,0.00035391,2]
[423115743,1779862232000,-300.0,0.00035391,2]
[423115742,1779862232000,-300.00000001,0.00035391,2]
[423115752,1779862232000,-865.6208675,0.00035391,2]
[423115740,1779862232000,-300.0,0.00035391,2]
[423115698,1779862232000,-1738.07,0.00033518,2]
[423115741,1779862232000,-300.0,0.00035391,2]
[423115696,1779862232000,-319.36,0.000335,2]
[423115700,1779862232000,-1738.07,0.00034356,2]
[423115702,1779862232000,-166.66,0.00034391,30]
[423115714,1779862232000,-449.17313882,0.00035391,2]
[423115718,1779862232000,-300.0,0.00035391,2]
[423115731,1779862232000,-300.0,0.00035391,2]
[423115721,1779862232000,-300.0,0.00035391,2]
[423115719,1779862232000,-493.38669858,0.00035391,2]
[423115715,1779862232000,-479.60716553,0.00035391,2]
[423115732,1779862232000,-300.0,0.00035391,2]
[423115736,1779862232000,-727.07827244,0.00035391,2]
[423115733,1779862232000,-528.48327171,0.00035391,2]
[423115727,1779862232000,-300.0,0.00035391,2]
[423115737,1779862232000,-302.21937029,0.00035391,2]
[423115729,1779862232000,-300.0,0.00035391,2]
[423115734,1779862232000,-1068.40163352,0.00035391,2]
[423115735,1779862232000,-894.65434383,0.00035391,2]
[423115723,1779862232000,-300.0,0.00035391,2]
[423115725,1779862232000,-605.31118564,0.00035391,2]
[423115738,1779862232000,-300.0,0.00035391,2]
[423115805,1779862233000,-300.0,0.00035391,2]
[423115807,1779862233000,-300.0,0.00035391,2]
[423115800,1779862233000,-302.21937029,0.00035391,2]
[423115799,1779862233000,-727.07827244,0.00035391,2]
[423115802,1779862233000,-300.99795142,0.00035391,2]
[423115804,1779862233000,-300.0,0.00035391,2]
[423115796,1779862233000,-528.48327171,0.00035391,2]
[423115803,1779862233000,-300.0,0.00035391,2]
[423115798,1779862233000,-894.65434383,0.00035391,2]
[423115817,1779862233000,-310.02493426,0.00035391,2]
[423115801,1779862233000,-300.0,0.00035391,2]
[423115806,1779862233000,-300.0,0.00035391,2]
[423115819,1779862233000,-594.79850986,0.00035391,2]
[423115808,1779862233000,-1263.96825586,0.00035391,2]
[423115811,1779862233000,-300.0,0.00035391,2]
[423115815,1779862233000,-300.09384644,0.00035391,2]
[423115810,1779862233000,-527.62572404,0.00035391,2]
[423115816,1779862233000,-1148.83589152,0.00035391,2]
[423115812,1779862233000,-300.0,0.00035391,2]
[423115814,1779862233000,-950.32029804,0.00035391,2]
[423115813,1779862233000,-865.6208675,0.00035391,2]
[423115818,1779862233000,-330.75882757,0.00035391,2]
[423115820,1779862233000,-300.0,0.00035391,2]
[423115822,1779862233000,-300.0,0.00035391,2]
[423115794,1779862233000,-300.0,0.00035391,2]
[423115809,1779862233000,-344.45437934,0.00035391,2]
[423115795,1779862233000,-300.0,0.00035391,2]
[423115771,1779862233000,-484.76763572,0.00035391,2]
[423115789,1779862233000,-300.0,0.00035391,2]
[423115766,1779862233000,-452.52893397,0.00035391,2]
[423115765,1779862233000,-578.28315025,0.00035391,2]
[423115767,1779862233000,-300.0,0.00035391,2]
[423115768,1779862233000,-300.0,0.00035391,2]
[423115769,1779862233000,-300.0,0.00035391,2]
[423115821,1779862233000,-464.48677942,0.00035391,2]
[423115777,1779862233000,-1096.2926835,0.00035391,2]
[423115779,1779862233000,-500.39470023,0.00035391,2]
[423115772,1779862233000,-310.28230408,0.00035391,2]
[423115773,1779862233000,-300.0,0.00035391,2]
[423115778,1779862233000,-300.0,0.00035391,2]
[423115770,1779862233000,-300.0,0.00035391,2]
[423115775,1779862233000,-300.0,0.00035391,2]
[423115774,1779862233000,-300.0,0.00035391,2]
[423115776,1779862233000,-300.0,0.00035391,2]
[423115780,1779862233000,-300.0,0.00035391,2]
[423115792,1779862233000,-300.0,0.00035391,2]
[423115782,1779862233000,-300.0,0.00035391,2]
[423115781,1779862233000,-300.0,0.00035391,2]
[423115793,1779862233000,-300.0,0.00035391,2]
[423115783,1779862233000,-300.0,0.00035391,2]
[423115785,1779862233000,-300.0,0.00035391,2]
[423115784,1779862233000,-300.0,0.00035391,2]
[423115790,1779862233000,-300.0,0.00035391,2]
[423115786,1779862233000,-300.0,0.00035391,2]
[423115788,1779862233000,-493.38669858,0.00035391,2]
[423115787,1779862233000,-300.0,0.00035391,2]
[423115791,1779862233000,-605.31118564,0.00035391,2]
[423115825,1779862233000,-300.0,0.00035391,2]
[423115797,1779862233000,-1068.40163352,0.00035391,2]
[423115829,1779862233000,-166.66,0.00035519,30]
[423115857,1779862233000,-696.62524917,0.00036493,15]
[423115859,1779862233000,-696.62524917,0.00036493,15]
[423115863,1779862233000,-696.62524917,0.00036493,15]
[423115861,1779862233000,-696.62524917,0.00036493,15]
[423115862,1779862233000,-696.62524917,0.00036493,15]
[423115865,1779862233000,-106.59260635,0.00036493,15]
[423115864,1779862233000,-696.62524917,0.00036493,15]
[423115854,1779862233000,-696.62524917,0.00036493,15]
[423115860,1779862233000,-696.62524917,0.00036493,15]
[423115867,1779862233000,-696.62524917,0.00036493,15]
[423115878,1779862233000,-696.62524917,0.00036493,15]
[423115866,1779862233000,-590.03264282,0.00036493,15]